lending/lending_fUSD_20240721
["ID","MTS","AMOUNT","RATE_DAILY","PERIOD"]
[332838365,1721562552127,-500.0,0.00045479,60]
[332838366,1721562552165,-500.0,0.00045479,60]
[332838367,1721562552203,-578.23,0.00045479,60]
[332838368,1721562552238,-582.44,0.00045479,60]
[332838369,1721562552275,-647.8,0.00045479,60]
[332838370,1721562552310,-1866.37,0.00045479,60]
[332838371,1721562552345,-506.04523467,0.00045479,60]
[332838372,1721562552379,-500.0,0.00045479,60]
[332838373,1721562552413,-835.94,0.00045479,60]
[332838374,1721562552448,-1545.24,0.00045479,60]
[332838375,1721562552487,-1314.22,0.00045479,60]
[332838376,1721562552523,-500.0,0.00045479,60]
[332838377,1721562552564,-788.87,0.00045479,60]
[332838378,1721562552602,-606.21,0.00045479,60]
[332838379,1721562552639,-500.0,0.00045479,60]
[332838380,1721562552676,-500.0,0.00045479,60]
[332838381,1721562552711,-815.98,0.00045479,60]
[332838382,1721562552749,-500.0,0.00045479,60]
[332838383,1721562552787,-960.08,0.00045479,60]
[332838384,1721562552824,-507.25,0.00045479,60]
[332838385,1721562552861,-500.0,0.00045479,60]
[332838386,1721562552900,-1241.56,0.00045479,60]
[332838387,1721562552939,-556.47,0.00045479,60]
[332838388,1721562552978,-500.0,0.00045479,60]
[332838389,1721562553015,-1359.26,0.00045479,60]
[332838390,1721562553051,-191.0,0.00045479,60]
[332838391,1721562553091,-500.0,0.00045479,60]
[332838392,1721562553129,-500.0,0.00045479,60]
[332838393,1721562553166,-471.26561772,0.00045479,60]
[332838394,1721562553205,-938.43,0.00045479,60]
[332838395,1721562553243,-1502.83,0.00045479,60]
[332838396,1721562553279,-500.0,0.00045479,60]
[332838397,1721562553318,-500.0,0.00045479,60]
[332838398,1721562553358,-500.0,0.00045479,60]
[332838399,1721562553396,-859.1,0.00045479,60]
[332838400,1721562553432,-1061.95,0.00045479,60]
[332838401,1721562553469,-625.09,0.00045479,60]
[332838402,1721562553507,-500.0,0.00045479,60]
[332838403,1721562553542,-500.0,0.00045479,60]
[332838404,1721562553579,-917.46,0.00045479,60]
[332838405,1721562553616,-825.43,0.00045479,60]
[332838406,1721562553653,-583.35,0.00045479,60]
[332838407,1721562553689,-500.0,0.00045479,60]
[332838408,1721562553728,-500.0,0.00045479,60]
[332838409,1721562553764,-500.0,0.00045479,60]
[332838410,1721562553803,-506.32,0.00045479,60]
[332838411,1721562553840,-870.79,0.00045479,60]
[332838412,1721562553878,-1209.94,0.00045479,60]
[332838413,1721562553917,-500.0,0.00045479,60]
[332838414,1721562553956,-761.72,0.00045479,60]
[332838415,1721562553996,-2000.0,0.00045479,60]
[332838416,1721562554034,-1021.77,0.00045479,60]
[332838417,1721562554071,-800.19,0.00045479,60]
[332838418,1721562554113,-500.0,0.00045479,60]
[332838419,1721562554153,-849.87,0.00045479,60]
[332838420,1721562554193,-504.8863448,0.00045479,60]
[332838421,1721562554231,-500.0,0.00045479,60]
[332838422,1721562554270,-525.8,0.00045479,60]
[332838423,1721562554309,-1192.78,0.00045479,60]
[332838424,1721562554351,-500.0,0.00045479,60]
[332838425,1721562554390,-1211.68,0.00045479,60]
[332838426,1721562554430,-500.0,0.00045479,60]
[332838427,1721562554468,-308.89248724,0.00045479,60]
[332838428,1721562554505,-574.26,0.00045479,60]
[332838429,1721562554542,-1554.69,0.00045479,60]
[332838430,1721562554583,-500.0,0.00045479,60]
[332838431,1721562554623,-512.52,0.00045479,60]
[332838432,1721562554661,-500.0,0.00045479,60]
[332838433,1721562554698,-500.0,0.00045479,60]
[332838434,1721562554735,-588.29,0.00045479,60]
[332838435,1721562554774,-941.15,0.00045479,60]
[332838436,1721562554812,-568.53,0.00045479,60]
[332838437,1721562554851,-1619.53,0.00045479,60]
[332838438,1721562554889,-972.08,0.00045479,60]
[332838439,1721562554929,-1283.54,0.00045479,60]
[332838440,1721562554972,-500.0,0.00045479,60]
[332838441,1721562555011,-559.12,0.00045479,60]
[332838442,1721562555051,-500.0,0.00045479,60]
[332838443,1721562555092,-500.0,0.00045479,60]
[332838444,1721562555132,-1019.57,0.00045479,60]
[332838445,1721562555172,-500.0,0.00045479,60]
[332838446,1721562555211,-500.0,0.00045479,60]
[332838447,1721562555249,-706.48,0.00045479,60]
[332838448,1721562555286,-1210.27,0.00045479,60]
[332838449,1721562555322,-500.0,0.00045479,60]
[332838450,1721562555361,-591.17,0.00045479,60]
[332838451,1721562555400,-500.0,0.00045479,60]
[332838452,1721562555438,-500.0,0.00045479,60]
[332838453,1721562555478,-1432.29,0.00045479,60]
[332838454,1721562555516,-1330.89,0.00045479,60]
[332838455,1721562555554,-500.0,0.00045479,60]
[332838456,1721562555594,-500.0,0.00045479,60]
[332838457,1721562555819,-500.0,0.00045479,60]
[332838458,1721562555857,-988.83,0.00045479,60]
[332838459,1721562555899,-1360.2,0.00045479,60]
[332838460,1721562555939,-1961.99,0.00045479,60]
[332838461,1721562555981,-1175.39,0.00045479,60]
[332838462,1721562556022,-500.0,0.00045479,60]
[332838463,1721562556063,-500.0,0.00045479,60]
[332838464,1721562556102,-1667.31,0.00045479,60]
[332838465,1721562556142,-626.11,0.00045479,60]
[332838466,1721562556182,-1087.26,0.00045479,60]
[332838467,1721562556220,-500.0,0.00045479,60]
[332838468,1721562556261,-1168.18,0.00045479,60]
[332838469,1721562556299,-1384.47,0.00045479,60]
[332838470,1721562556337,-1041.33,0.00045479,60]
[332838471,1721562556377,-500.0,0.00045479,60]
[332838472,1721562556416,-1364.5,0.00045479,60]
[332838473,1721562556458,-500.0,0.00045479,60]
[332838474,1721562556499,-500.0,0.00045479,60]
[332838475,1721562556540,-500.0,0.00045479,60]
[332838476,1721562556579,-2000.0,0.00045479,30]
[332838477,1721562556617,-500.0,0.00045479,60]
[332838478,1721562556659,-1043.6,0.00045479,60]
[332838479,1721562556698,-562.21,0.00045479,60]
[332838480,1721562556738,-500.0,0.00045479,60]
[332838481,1721562556777,-165.91644462,0.00045479,60]
[332838482,1721562556817,-1662.91,0.00045479,60]
[332838483,1721562556859,-500.0,0.00045479,60]
[332838484,1721562556899,-828.34,0.00045479,60]
[332838485,1721562556940,-768.8,0.00045479,60]
[332838486,1721562556985,-500.0,0.00045479,60]
[332838488,1721562557030,-699.02,0.00045479,60]
[332838490,1721562557072,-500.0,0.00045479,60]
[332838492,1721562557115,-694.74,0.00045479,60]
[332838493,1721562557155,-500.0,0.00045479,60]
[332838494,1721562557194,-500.0,0.00045479,60]
[332838495,1721562557235,-614.5601736,0.00045479,60]
[332838496,1721562557277,-500.0,0.00045479,60]
[332838497,1721562557317,-802.38,0.00045479,60]
[332838498,1721562557359,-500.0,0.00045479,60]
[332838499,1721562557398,-546.0,0.00045479,60]
[332838500,1721562557445,-1262.18,0.00045479,60]
[332838501,1721562557484,-1932.95,0.00045479,60]
[332838502,1721562557523,-911.09,0.00045479,60]
[332838503,1721562557564,-500.0,0.00045479,60]
[332838504,1721562557606,-500.0,0.00045479,60]
[332838505,1721562557647,-1154.95,0.00045479,60]
[332838506,1721562557685,-500.0,0.00045479,60]
[332838507,1721562557723,-1956.26,0.00045479,60]
[332838508,1721562557769,-500.0,0.00045479,60]
[332838509,1721562557807,-500.0,0.00045479,60]
[332838510,1721562557848,-500.0,0.00045479,60]
[332838511,1721562557890,-916.91,0.00045479,60]
[332838512,1721562557931,-500.0,0.00045479,60]
[332838513,1721562557972,-500.0,0.00045479,60]
[332838514,1721562558013,-1208.28,0.00045479,60]
[332838515,1721562558056,-1923.27,0.00045479,60]
[332838516,1721562558099,-694.37,0.00045479,60]
[332838517,1721562558141,-1666.33,0.00045479,60]
[332838518,1721562558183,-500.0,0.00045479,60]
[332838519,1721562558224,-500.0,0.00045479,60]
[332838520,1721562558263,-500.0,0.00045479,60]
[332838521,1721562558302,-500.0,0.00045479,60]
[332838522,1721562558339,-500.0,0.00045479,60]
[332838523,1721562558375,-605.85,0.00045479,60]
[332838524,1721562558411,-500.0,0.00045479,60]
[332838525,1721562558447,-500.0,0.00045479,60]
[332838526,1721562558485,-1044.79,0.00045479,60]
[332838527,1721562558523,-1993.49,0.00045479,60]
[332838528,1721562558562,-500.0,0.00045479,60]
[332838529,1721562558604,-2607.43,0.00045479,60]
[332838530,1721562558644,-2442.5,0.00045479,60]
[332838531,1721562558683,-500.0,0.00045479,60]
[332838532,1721562558721,-1156.27,0.00045479,60]
[332838533,1721562558758,-857.7,0.00045479,60]
[332838534,1721562558796,-614.69,0.00045479,60]
[332838535,1721562558834,-1651.31,0.00045479,60]
[332838536,1721562558871,-500.0,0.00045479,60]
[332838537,1721562558908,-964.54,0.00045479,60]
[332838538,1721562558945,-552.22379011,0.00045479,60]
[332838539,1721562558982,-500.0,0.00045479,60]
[332838540,1721562559025,-1410.41,0.00045479,60]
[332838541,1721562559062,-500.0,0.00045479,60]
[332838542,1721562559112,-500.0,0.00045479,60]
[332838543,1721562559153,-1976.74,0.00045479,60]
[332838544,1721562559193,-500.0,0.00045479,60]
[332838545,1721562559231,-500.0,0.00045479,60]
[332838546,1721562559271,-500.0,0.00045479,60]
[332838547,1721562559309,-1210.42,0.00045479,60]
[332838548,1721562559346,-1298.71,0.00045479,60]
[332838549,1721562559383,-500.0,0.00045479,60]
[332838550,1721562559421,-2870.38,0.00045479,60]
[332838551,1721562559460,-1397.0,0.00045479,60]
[332838552,1721562559501,-1090.78,0.00045479,60]
[332838553,1721562559540,-500.0,0.00045479,60]
[332838554,1721562559582,-975.35,0.00045479,60]
[332838555,1721562559623,-500.0,0.00045479,60]
[332838556,1721562559663,-500.0,0.00045479,60]
[332838557,1721562559702,-975.06,0.00045479,60]
[332838558,1721562559743,-588.03,0.00045479,60]
[332838559,1721562559784,-3219.97,0.00045479,60]
[332838560,1721562559826,-1233.64,0.00045479,60]
[332838561,1721562559866,-500.0,0.00045479,60]
[332838562,1721562559908,-4349.87,0.00045479,60]
[332838563,1721562559950,-897.27,0.00045479,60]
[332838564,1721562560174,-500.0,0.00045479,60]
[332838565,1721562560213,-779.84,0.00045479,60]
[332838566,1721562560251,-2831.42,0.00045479,60]
[332838567,1721562560288,-500.0,0.00045479,60]
[332838568,1721562560324,-5862.38,0.00045479,21]
[332838569,1721562560358,-797.05,0.00045479,60]
[332838570,1721562560392,-1449.32,0.00045479,60]
[332838571,1721562560426,-150.0,0.00045479,60]
[332838572,1721562560463,-611.71,0.00045479,60]
[332838573,1721562560497,-500.0,0.00045479,60]
[332838574,1721562560531,-2307.85,0.00045479,60]
[332838575,1721562560564,-1220.31,0.00045479,60]
[332838576,1721562560602,-1547.85,0.00045479,60]
[332838577,1721562560636,-1404.45,0.00045479,60]
[332838578,1721562560669,-500.0,0.00045479,60]
[332838579,1721562560703,-500.0,0.00045479,60]
[332838580,1721562560737,-500.0,0.00045479,60]
[332838581,1721562560774,-2145.84,0.00045479,60]
[332838582,1721562560807,-771.19,0.00045479,60]
[332838583,1721562560842,-558.3,0.00045479,60]
[332838584,1721562560877,-2587.27,0.00045479,60]
[332838585,1721562560914,-892.89,0.00045479,60]
[332838586,1721562560949,-1698.04,0.00045479,60]
[332838587,1721562560984,-500.0,0.00045479,60]
[332838588,1721562561019,-1673.38,0.00045479,60]
[332838589,1721562561054,-4298.51,0.00045479,60]
[332838590,1721562561090,-755.63,0.00045479,60]
[332838591,1721562561128,-500.0,0.00045479,60]
[332838592,1721562561165,-1946.7,0.00045479,60]
[332838593,1721562561202,-500.0,0.00045479,60]
[332838594,1721562561238,-976.36,0.00045479,60]
[332838595,1721562561277,-1926.96,0.00045479,60]
[332838596,1721562561311,-511.2398196,0.00045479,60]
[332838597,1721562561346,-1035.15,0.00045479,60]
[332838598,1721562561380,-448.73250051,0.00045479,60]
[332838599,1721562561414,-1557.66,0.00045479,60]
[332838600,1721562561447,-500.0,0.00045479,60]
[332838601,1721562561480,-1158.49,0.00045479,60]
[332838602,1721562561514,-500.0,0.00045479,60]
[332838603,1721562561548,-500.0,0.00045479,60]
[332838604,1721562561583,-991.73,0.00045479,60]
[332838605,1721562561617,-422.86295171,0.00045479,60]
[332838606,1721562561652,-2557.51,0.00045479,60]
[332838607,1721562561686,-765.24,0.00045479,60]
[332838608,1721562561719,-2269.25,0.00045479,60]
[332838609,1721562561752,-500.0,0.00045479,60]
[332838610,1721562561786,-500.0,0.00045479,60]
[332838611,1721562561819,-1069.04,0.00045479,60]
[332838612,1721562561852,-509.72,0.00045479,60]
[332838613,1721562561887,-1450.95,0.00045479,60]
[332838614,1721562561922,-500.0,0.00045479,60]
[332838615,1721562561960,-11013.47,0.00045479,60]
[332838616,1721562561996,-3431.18,0.00045479,60]
[332838617,1721562562034,-1928.36304948,0.000456,120]
[332838618,1721562562070,-728.0,0.00045753,60]
[332838619,1721562562107,-3000.0,0.00045753,120]
[332838620,1721562562141,-755.16,0.00045753,120]
[332838621,1721562562175,-600.0,0.00045753,30]
[332838622,1721562562208,-500.0,0.00045753,30]
[332838623,1721562562240,-509.40819933,0.00045753,60]
[332838624,1721562562275,-500.0,0.00045753,60]
[332838625,1721562562307,-500.0,0.00045753,60]
[332838626,1721562562340,-500.0,0.00045753,60]
[332838627,1721562562373,-500.0,0.00045753,60]
[332838628,1721562562405,-500.0,0.00045753,60]
[332838629,1721562562439,-500.0,0.00045753,60]
[332838630,1721562562472,-502.07095506,0.00045753,60]
[332838631,1721562562505,-500.0,0.00045753,60]
[332838632,1721562562538,-500.0,0.00045753,60]
[332838633,1721562562574,-500.0,0.00045753,60]
[332838634,1721562562607,-500.0,0.00045753,60]
[332838635,1721562562639,-500.0,0.00045753,60]
[332838636,1721562562671,-500.0,0.00045753,60]
[332838637,1721562562704,-373.12922789,0.00045753,60]
[332838638,1721562562737,-1049.68,0.00045753,60]
[332838639,1721562562769,-500.0,0.00045753,60]
[332838640,1721562562801,-500.0,0.00045753,60]
[332838641,1721562562834,-500.0,0.00045753,60]
[332838642,1721562562865,-500.0,0.00045753,60]
[332838643,1721562562898,-500.0,0.00045753,60]
[332838644,1721562562932,-596.0,0.00045753,60]
[332838645,1721562562964,-500.0,0.00045753,60]
[332838646,1721562562996,-500.0,0.00045753,60]
[332838647,1721562563030,-500.0,0.00045753,60]
[332838648,1721562563064,-500.0,0.00045753,60]
[332838649,1721562563099,-500.0,0.00045753,60]
[332838650,1721562563133,-500.0,0.00045753,60]
[332838651,1721562563168,-500.0,0.00045753,60]
[332838652,1721562563202,-500.0,0.00045753,60]
[332838653,1721562563236,-500.0,0.00045753,60]
[332838654,1721562563270,-500.0,0.00045753,60]
[332838655,1721562563303,-500.0,0.00045753,60]
[332838656,1721562563335,-500.0,0.00045753,60]
[332838657,1721562563368,-500.0,0.00045753,60]
[332838658,1721562563399,-500.0,0.00045753,60]
[332838659,1721562563431,-583.69,0.00045753,60]
[332838660,1721562563464,-627.21,0.00045753,60]
[332838661,1721562563496,-500.0,0.00045753,60]
[332838662,1721562563528,-500.0,0.00045753,60]
[332838663,1721562563561,-1086.76,0.00045753,60]
[332838664,1721562563595,-1232.08,0.00045753,60]
[332838665,1721562563627,-500.0,0.00045753,60]
[332838666,1721562563659,-906.24,0.00045753,60]
[332838667,1721562563838,-500.0,0.00045753,60]
[332838668,1721562563915,-1235.37,0.00045753,60]
[332838669,1721562563956,-500.0,0.00045753,60]
[332838670,1721562563997,-1269.86,0.00045753,60]
[332838671,1721562564037,-500.0,0.00045753,60]
[332838672,1721562564078,-500.0,0.00045753,60]
[332838673,1721562564123,-200.0,0.00045753,60]
[332838674,1721562564166,-500.0,0.00045753,60]
[332838675,1721562564207,-500.0,0.00045753,60]
[332838676,1721562564247,-500.0,0.00045753,60]
[332838677,1721562564286,-514.86,0.00045753,60]
[332838678,1721562564328,-500.0,0.00045753,60]
[332838679,1721562564368,-500.0,0.00045753,60]
[332838680,1721562564407,-500.0,0.00045753,60]
[332838681,1721562564447,-573.37,0.00045753,60]
[332838682,1721562564486,-1000.0,0.00045753,60]
[332838683,1721562564525,-500.0,0.00045753,60]
[332838684,1721562564566,-724.14,0.00045753,60]
[332838685,1721562564606,-644.44,0.00045753,60]
[332838686,1721562564644,-500.0,0.00045753,60]
[332838687,1721562564683,-500.0,0.00045753,60]
[332838688,1721562564721,-604.49,0.00045753,60]
[332838689,1721562564759,-556.68,0.00045753,60]
[332838690,1721562564797,-500.0,0.00045753,60]
[332838691,1721562564834,-761.21,0.00045753,60]
[332838692,1721562564872,-777.65,0.00045753,60]
[332838693,1721562564913,-500.0,0.00045753,60]
[332838694,1721562564955,-500.0,0.00045753,60]
[332838695,1721562565002,-1228.36,0.00045753,60]
[332838696,1721562565049,-580.68,0.00045753,60]
[332838697,1721562565095,-500.0,0.00045753,60]
[332838698,1721562565141,-500.0,0.00045753,60]
[332838699,1721562565187,-500.0,0.00045753,60]
[332838700,1721562565234,-500.0,0.00045753,60]
[332838701,1721562565279,-688.11,0.00045753,60]
[332838702,1721562565324,-338.80480891,0.00045753,60]
[332838703,1721562565369,-1135.36,0.00045753,60]
[332838704,1721562565413,-1179.49,0.00045753,60]
[332838705,1721562565452,-500.0,0.00045753,60]
[332838706,1721562565489,-500.0,0.00045753,60]
[332838707,1721562565525,-587.66,0.00045753,60]
[332838708,1721562565559,-945.04,0.00045753,60]
[332838709,1721562565596,-500.0,0.00045753,60]
[332838710,1721562565632,-500.0,0.00045753,60]
[332838711,1721562565668,-500.0,0.00045753,60]
[332838712,1721562565702,-775.44,0.00045753,60]
[332838713,1721562565738,-748.56,0.00045753,60]
[332838714,1721562565773,-631.09,0.00045753,60]
[332838715,1721562565808,-555.58,0.00045753,60]
[332838716,1721562565845,-500.0,0.00045753,60]
[332838717,1721562565881,-774.16,0.00045753,60]
[332838718,1721562565918,-631.09,0.00045753,60]
[332838719,1721562565957,-1597.81,0.00045753,60]
[332838720,1721562565996,-500.0,0.00045753,60]
[332838721,1721562566034,-962.17,0.00045753,60]
[332838722,1721562566071,-500.0,0.00045753,60]
[332838723,1721562566110,-500.0,0.00045753,60]
[332838724,1721562566146,-500.0,0.00045753,60]
[332838725,1721562566185,-500.0,0.00045753,60]
[332838726,1721562566222,-500.0,0.00045753,60]
[332838727,1721562566261,-767.96,0.00045753,60]
[332838728,1721562566300,-500.0,0.00045753,60]
[332838729,1721562566336,-528.85,0.00045753,60]
[332838730,1721562566371,-500.0,0.00045753,60]
[332838731,1721562566406,-500.0,0.00045753,60]
[332838732,1721562566441,-500.0,0.00045753,60]
[332838733,1721562566477,-500.0,0.00045753,60]
[332838734,1721562566513,-609.59,0.00045753,60]
[332838735,1721562566550,-500.0,0.00045753,60]
[332838736,1721562566588,-658.66,0.00045753,60]
[332838737,1721562566625,-1294.17,0.00045753,60]
[332838738,1721562566662,-918.46,0.00045753,60]
[332838739,1721562566698,-613.96,0.00045753,60]
[332838740,1721562566736,-575.24,0.00045753,60]
[332838741,1721562566774,-500.0,0.00045753,60]
[332838742,1721562566811,-744.63,0.00045753,60]
[332838743,1721562566850,-1861.87,0.00045753,60]
[332838744,1721562566887,-599.7,0.00045753,60]
[332838745,1721562566925,-500.0,0.00045753,60]
[332838746,1721562566962,-500.0,0.00045753,60]
[332838747,1721562566997,-714.25,0.00045753,60]
[332838748,1721562567032,-996.46,0.00045753,60]
[332838749,1721562567067,-500.0,0.00045753,60]
[332838750,1721562567109,-1084.78,0.00045753,60]
[332838751,1721562567147,-2388.81,0.00045753,60]
[332838752,1721562567184,-500.0,0.00045753,60]
[332838753,1721562567220,-500.0,0.00045753,60]
[332838754,1721562567256,-598.93,0.00045753,60]
[332838755,1721562567291,-1303.3,0.00045753,60]
[332838756,1721562567326,-500.0,0.00045753,60]
[332838757,1721562567362,-788.43,0.00045753,60]
[332838758,1721562567397,-505.70339835,0.00045753,60]
[332838759,1721562567433,-746.44,0.00045753,60]
[332838760,1721562567468,-1276.61,0.00045753,60]
[332838761,1721562567503,-558.18,0.00045753,60]
[332838762,1721562567539,-670.72,0.00045753,60]
[332838763,1721562567578,-542.49,0.00045753,60]
[332838764,1721562567613,-562.88,0.00045753,60]
[332838765,1721562567650,-500.0,0.00045753,60]
[332838766,1721562567687,-500.0,0.00045753,60]
[332838767,1721562567724,-500.0,0.00045753,60]
[332838768,1721562567758,-500.0,0.00045753,60]
[332838769,1721562567793,-500.0,0.00045753,60]
[332838770,1721562567830,-506.98672125,0.00045753,60]
[332838771,1721562567866,-592.17,0.00045753,60]
[332838772,1721562568093,-500.0,0.00045753,60]
[332838773,1721562568135,-500.0,0.00045753,60]
[332838774,1721562568173,-1623.76,0.00045753,60]
[332838775,1721562568212,-905.81,0.00045753,60]
[332838776,1721562568250,-500.0,0.00045753,60]
[332838777,1721562568287,-500.0,0.00045753,60]
[332838778,1721562568324,-500.0,0.00045753,60]
[332838779,1721562568363,-500.0,0.00045753,60]
[332838780,1721562568400,-500.0,0.00045753,60]
[332838781,1721562568435,-598.73,0.00045753,60]
[332838782,1721562568470,-912.84,0.00045753,60]
[332838783,1721562568504,-500.0,0.00045753,60]
[332838784,1721562568539,-500.0,0.00045753,60]
[332838785,1721562568576,-500.0,0.00045753,60]
[332838786,1721562568610,-500.0,0.00045753,60]
[332838787,1721562568644,-500.0,0.00045753,60]
[332838788,1721562568678,-500.0,0.00045753,60]
[332838789,1721562568712,-500.0,0.00045753,60]
[332838790,1721562568746,-500.0,0.00045753,60]
[332838791,1721562568781,-1434.64,0.00045753,60]
[332838792,1721562568816,-691.27,0.00045753,60]
[332838793,1721562568852,-500.0,0.00045753,60]
[332838794,1721562568887,-500.0,0.00045753,60]
[332838795,1721562568921,-500.0,0.00045753,60]
[332838796,1721562568957,-508.75898165,0.00045753,60]
[332838797,1721562568992,-505.86351746,0.00045753,60]
[332838798,1721562569027,-500.0,0.00045753,60]
[332838799,1721562569064,-764.64,0.00045753,60]
[332838800,1721562569102,-545.67,0.00045753,60]
[332838801,1721562569142,-500.0,0.00045753,60]
[332838802,1721562569194,-500.0,0.00045753,60]
[332838803,1721562569233,-500.0,0.00045753,60]
[332838804,1721562569270,-548.74,0.00045753,60]
[332838805,1721562569311,-500.0,0.00045753,60]
[332838806,1721562569348,-1666.69,0.00045753,60]
[332838807,1721562569384,-1260.61,0.00045753,60]
[332838808,1721562569421,-515.23577597,0.00045753,60]
[332838809,1721562569456,-500.0,0.00045753,60]
[332838810,1721562569492,-555.93,0.00045753,60]
[332838811,1721562569526,-500.0,0.00045753,60]
[332838812,1721562569560,-841.26,0.00045753,60]
[332838813,1721562569594,-556.17,0.00045753,60]
[332838814,1721562569628,-583.12,0.00045753,60]
[332838815,1721562569662,-611.71,0.00045753,60]
[332838816,1721562569695,-860.69,0.00045753,60]
[332838817,1721562569730,-500.0,0.00045753,60]
[332838818,1721562569764,-744.21,0.00045753,60]
[332838819,1721562569798,-537.23,0.00045753,60]
[332838820,1721562569831,-500.0,0.00045753,60]
[332838821,1721562569865,-500.0,0.00045753,60]
[332838822,1721562569901,-907.17,0.00045753,60]
[332838823,1721562569937,-500.0,0.00045753,60]
[332838824,1721562569978,-366.2598177,0.00045753,60]
[332838825,1721562570014,-919.51,0.00045753,60]
[332838826,1721562570051,-500.0,0.00045753,60]
[332838827,1721562570093,-500.0,0.00045753,60]
[332838828,1721562570131,-500.0,0.00045753,60]
[332838829,1721562570167,-500.0,0.00045753,60]
[332838830,1721562570204,-500.0,0.00045753,60]
[332838831,1721562570242,-929.49,0.00045753,60]
[332838832,1721562570278,-757.82,0.00045753,60]
[332838833,1721562570313,-500.0,0.00045753,60]
[332838834,1721562570351,-500.0,0.00045753,60]
[332838835,1721562570386,-500.0,0.00045753,60]
[332838836,1721562570419,-500.0,0.00045753,60]
[332838837,1721562570453,-991.31,0.00045753,60]
[332838838,1721562570493,-500.0,0.00045753,60]
[332838839,1721562570530,-995.47,0.00045753,60]
[332838840,1721562570569,-1684.14,0.00045753,60]
[332838841,1721562570606,-500.0,0.00045753,60]
[332838842,1721562570642,-770.43,0.00045753,60]
[332838843,1721562570677,-794.71,0.00045753,60]
[332838844,1721562570710,-500.0,0.00045753,60]
[332838845,1721562570744,-505.79086465,0.00045753,60]
[332838846,1721562570780,-500.0,0.00045753,60]
[332838847,1721562570816,-756.47,0.00045753,60]
[332838848,1721562570852,-1355.1,0.00045753,60]
[332838849,1721562570886,-500.0,0.00045753,60]
[332838850,1721562570922,-500.0,0.00045753,60]
[332838851,1721562570959,-500.0,0.00045753,60]
[332838852,1721562570994,-1476.27,0.00045753,60]
[332838853,1721562571028,-646.14,0.00045753,60]
[332838854,1721562571063,-653.84,0.00045753,60]
[332838855,1721562571100,-500.0,0.00045753,60]
[332838856,1721562571136,-500.0,0.00045753,60]
[332838857,1721562571172,-1587.36,0.00045753,60]
[332838858,1721562571208,-1034.87,0.00045753,60]
[332838859,1721562571245,-2193.88,0.00045753,60]
[332838860,1721562571280,-1249.02,0.00045753,60]
[332838861,1721562571315,-1905.81,0.00045753,60]
[332838862,1721562571351,-500.0,0.00045753,60]
[332838863,1721562571387,-1105.89,0.00045753,60]
[332838864,1721562571420,-1263.86,0.00045753,60]
[332838865,1721562571454,-500.0,0.00045753,60]
[332838866,1721562571488,-500.0,0.00045753,60]
[332838867,1721562571523,-917.61,0.00045753,60]